fUSD/lending_fUSD_20250204
["ID","MTS","AMOUNT","RATE_DAILY","PERIOD"]
[351665343,1738699834734,-574.36038629,0.00011999,2]
[351665344,1738699834744,-77868.27,0.00011999,2]
[351665345,1738699834771,-500.0,0.00011999,2]
[351665346,1738699834781,-500.0,0.00011999,2]
[351665347,1738699834791,-500.0,0.00011999,2]
[351665348,1738699834801,-500.0,0.00011999,2]
[351665349,1738699834811,-500.0,0.00011999,2]
[351665350,1738699834822,-265.50335315,0.00011999,2]
[351665351,1738699834831,-500.0,0.00011999,2]
[351665352,1738699834841,-500.0,0.00011999,2]
[351665353,1738699834851,-500.0,0.00011999,2]
[351665354,1738699834861,-500.59330565,0.00011999,2]
[351665355,1738699834870,-501.22387425,0.00011999,2]
[351665356,1738699834880,-500.0,0.00011999,2]
[351665357,1738699834889,-500.0,0.00011999,2]
[351665358,1738699834899,-500.0,0.00011999,2]
[351665359,1738699834908,-500.0,0.00011999,2]
[351665360,1738699834918,-500.0,0.00011999,2]
[351665361,1738699834928,-500.0,0.00011999,2]
[351665362,1738699834938,-504.96381258,0.00011999,2]
[351665363,1738699834948,-500.0,0.00011999,2]
[351665364,1738699834958,-500.0,0.00011999,2]
[351665365,1738699834967,-500.0,0.00011999,2]
[351665366,1738699834977,-500.0,0.00011999,2]
[351665367,1738699834987,-500.0,0.00011999,2]
[351665368,1738699834997,-500.0,0.00011999,2]
[351665369,1738699835007,-500.0,0.00011999,2]
[351665370,1738699835018,-500.0,0.00011999,2]
[351665371,1738699835027,-500.0,0.00011999,2]
[351665372,1738699835036,-500.0,0.00011999,2]
[351665373,1738699835046,-500.0,0.00011999,2]
[351665374,1738699835055,-384.38772157,0.00011999,2]
[351665375,1738699835065,-500.0,0.00011999,2]
[351665376,1738699835074,-500.0,0.00011999,2]
[351665377,1738699835084,-500.0,0.00011999,2]
[351665378,1738699835093,-500.0,0.00011999,2]
[351665379,1738699835103,-500.0,0.00011999,2]
[351665380,1738699835112,-500.0,0.00011999,2]
[351665381,1738699835122,-500.0,0.00011999,2]
[351665382,1738699835131,-317.68531001,0.00011999,2]
[351665383,1738699835141,-500.0,0.00011999,2]
[351665384,1738699835151,-500.0,0.00011999,2]
[351665385,1738699835161,-500.0,0.00011999,2]
[351665386,1738699835171,-500.0,0.00011999,2]
[351665387,1738699835180,-500.0,0.00011999,2]
[351665388,1738699835190,-500.0,0.00011999,2]
[351665389,1738699835199,-500.0,0.00011999,2]
[351665390,1738699835209,-500.0,0.00011999,2]
[351665391,1738699835218,-500.0,0.00011999,2]
[351665392,1738699835228,-500.0,0.00011999,2]
[351665393,1738699835237,-500.0,0.00011999,2]
[351665394,1738699835247,-500.0,0.00011999,2]
[351665395,1738699835271,-500.0,0.00011999,2]
[351665396,1738699835280,-500.0,0.00011999,2]
[351665397,1738699835290,-500.0,0.00011999,2]
[351665398,1738699835299,-500.0,0.00011999,2]
[351665399,1738699835309,-500.0,0.00011999,2]
[351665400,1738699835319,-500.0,0.00011999,2]
[351665401,1738699835329,-500.0,0.00011999,2]
[351665402,1738699835338,-500.0,0.00011999,2]
[351665403,1738699835347,-500.0,0.00011999,2]
[351665404,1738699835357,-500.0,0.00011999,2]
[351665405,1738699835367,-500.0,0.00011999,2]
[351665406,1738699835376,-500.0,0.00011999,2]
[351665407,1738699835386,-4000.0,0.00011999,2]
[351665408,1738699835395,-500.0,0.00011999,2]
[351665409,1738699835405,-500.0,0.00011999,2]
[351665410,1738699835415,-500.0,0.00011999,2]
[351665411,1738699835425,-500.0,0.00011999,2]
[351665412,1738699835434,-412.0,0.00011999,2]
[351665413,1738699835444,-500.0,0.00011999,2]
[351665414,1738699835454,-500.0,0.00011999,2]
[351665415,1738699835464,-500.0,0.00011999,2]
[351665416,1738699835475,-500.0,0.00011999,2]
[351665417,1738699835484,-182.3771144,0.00011999,2]
[351665418,1738699835495,-150.0,0.00011999,2]
[351665419,1738699835505,-500.0,0.00011999,2]
[351665420,1738699835514,-1000.0,0.00011999,2]
[351665421,1738699835524,-1000.0,0.00011999,2]
[351665422,1738699835535,-1000.0,0.00011999,2]
[351665423,1738699835544,-1000.0,0.00011999,2]
[351665424,1738699835554,-1000.0,0.00011999,2]
[351665425,1738699835568,-1000.0,0.00011999,2]
[351665426,1738699835579,-1000.0,0.00011999,2]
[351665427,1738699835589,-1000.0,0.00011999,2]
[351665428,1738699835599,-1000.0,0.00011999,2]
[351665429,1738699835609,-1000.0,0.00011999,2]
[351665430,1738699835618,-500.0,0.00011999,2]
[351665431,1738699835628,-500.0,0.00011999,2]
[351665432,1738699835637,-500.0,0.00011999,2]
[351665433,1738699835648,-500.0,0.00011999,2]
[351665434,1738699835658,-500.0,0.00011999,2]
[351665435,1738699835667,-500.0,0.00011999,2]
[351665436,1738699835677,-380.36,0.00011999,2]
[351665437,1738699835686,-48146.11681705,0.00012,18]
[351665438,1738699835713,-9830.7,0.00012,18]
[351665446,1738699838536,-500.0,0.00011998,2]
[351665447,1738699838547,-20032.31199999,0.00012,2]
[351665448,1738699838576,-1974.40092,0.00012,2]
[351665449,1738699838589,-294.31662162,0.00012,2]
[351665450,1738699838601,-114090.0,0.00012,2]
[351665451,1738699838613,-45912.08606279,0.00012,2]
[351665452,1738699838624,-5493.06988919,0.00012,2]
[351665454,1738699838649,-500.0,0.00011998,2]
[351665456,1738699838659,-525.4,0.00012,2]
[351665458,1738699838670,-43612.09291074,0.00012,2]
[351665460,1738699838681,-40775.9895952,0.00012,2]
[351665463,1738699838693,-101270.25118672,0.00012,2]
[351665465,1738699838704,-16929.79231938,0.00012,2]
[351665467,1738699838716,-6951.04427386,0.00012,2]
[351665469,1738699838728,-29987.86415021,0.00012,2]
[351665472,1738699838742,-342.20275189,0.00012,2]
[351665474,1738699838758,-863.9976935,0.00012,2]
[351665476,1738699838770,-99256.68047237,0.00012,2]
[351665478,1738699838782,-2220.50575396,0.00012,2]
[351665481,1738699838794,-878.62417396,0.00012,2]
[351665608,1738699840280,-346.02250741,0.00012,2]
[351665609,1738699840292,-3165.3,0.00012,2]
[351665610,1738699840304,-1710.942436,0.00012,2]
[351665611,1738699840316,-1136.2383684,0.00012,2]
[351665612,1738699840328,-3973.59654367,0.00012,2]
[351665613,1738699840380,-27808.62700885,0.00012,2]
[351665614,1738699840392,-1082.31218453,0.00012,2]
[351665615,1738699840403,-1321.953671,0.00012,2]
[351665616,1738699840415,-609.5,0.00012,2]
[351665617,1738699840435,-2362.25873349,0.00012,2]
[351665618,1738699840449,-449.54333001,0.00012,2]
[351665619,1738699840461,-573.32806682,0.00012,2]
[351665620,1738699840473,-11118.50984221,0.00012,2]
[351665621,1738699840485,-1531.45296691,0.00012,2]
[351665622,1738699840497,-580.45683315,0.00012,2]
[351665623,1738699840513,-557.80299999,0.00012,2]
[351665624,1738699840610,-6029.48000006,0.00012,2]
[351665684,1738699843360,-500.0,0.00011998,2]
[351665685,1738699843369,-576.0,0.00011999,2]
[351665686,1738699843379,-4885.82529163,0.00012,2]
[351665687,1738699843412,-1172.41058247,0.00012,2]
[351665688,1738699843423,-19524.20000002,0.00012,2]
[351665689,1738699843527,-1557.33898618,0.00012,2]
[351665690,1738699843542,-4933.52847109,0.00012,2]
[351665691,1738699843553,-127257.43375675,0.00012,2]
[351665692,1738699843637,-3603.56577074,0.00012,2]
[351665693,1738699843649,-2312.4955002,0.00012,2]
[351665694,1738699843661,-3472.52034028,0.00012,2]
[351665695,1738699843672,-1081.38874238,0.00012,2]
[351665696,1738699843683,-1014.0849147,0.00012,2]
[351665720,1738699846486,-500.0,0.00011998,2]
[351665721,1738699846496,-376.09,0.00011999,2]
[351665722,1738699846506,-519.0,0.00011999,2]
[351665723,1738699846520,-859.50056778,0.00012,2]
[351665724,1738699846530,-759.42148541,0.00012,2]
[351665725,1738699846542,-1383168.34128808,0.00012,2]
[351665726,1738699846703,-4271.87391227,0.00012,2]
[351665727,1738699846757,-29749.651185,0.00012,2]
[351665728,1738699846770,-551.58542842,0.00012,2]
[351665729,1738699846813,-465.71597556,0.00012,2]
[351665730,1738699846825,-11239.1716,0.00012,2]
[351665740,1738699852494,162.056284,8.654e-05,2]
[351665741,1738699852830,162.056284,8.664e-05,2]
[351665742,1738699853140,162.056284,8.792e-05,2]
[351665743,1738699853437,162.056284,9.075e-05,2]
[351665746,1738699949514,842.38,8.994e-05,2]
[351665747,1738699980339,6572.6929,8.836e-05,2]
[351665748,1738700120117,161.49,8.602e-05,2]
[351665750,1738700370924,150.0,0.00017737,120]
[351665751,1738700434147,233.88230105,0.00011999,120]
[351665752,1738700457600,1162.93764473,0.000189,120]
[351665753,1738700610782,150.0,0.0001833,120]
[351665754,1738700742813,10795.211964,8.8e-05,2]
[351665755,1738700742842,121700.55214483,8.8e-05,2]
[351665756,1738700824279,2132.70181781,8.746e-05,2]
[351665757,1738700824573,2132.70181781,8.758e-05,2]
[351665758,1738700824855,2132.70181781,8.742e-05,2]
[351665759,1738700825151,2132.70181781,8.794e-05,2]
[351665761,1738700863036,800.26,8.777e-05,2]
[351665781,1738701031541,-300.0,9.369e-05,2]
[351665782,1738701031552,-150.0,9.369e-05,2]
[351665783,1738701031562,-122776.28221195,9.37e-05,2]
[351665784,1738701031573,-1000.0,9.863e-05,2]
[351665785,1738701031583,-527.44754371,9.863e-05,2]
[351665786,1738701031593,-500.0,9.973e-05,2]
[351665787,1738701031604,-500.0,9.999e-05,2]
[351665788,1738701031621,-500.0,9.999e-05,2]
[351665789,1738701031631,-500.0,9.999e-05,2]
[351665790,1738701031642,-500.0,9.999e-05,2]
[351665791,1738701031652,-500.0,9.999e-05,2]
[351665792,1738701031662,-161.6341356,9.999e-05,2]
[351665793,1738701031673,-500.0,9.999e-05,2]
[351665794,1738701031683,-500.0,9.999e-05,2]
[351665795,1738701031693,-500.0,9.999e-05,2]
[351665796,1738701031703,-500.0,9.999e-05,2]
[351665797,1738701031714,-500.0,9.999e-05,2]
[351665798,1738701031724,-500.0,9.999e-05,2]
[351665799,1738701031734,-500.0,9.999e-05,2]
[351665800,1738701031744,-500.0,9.999e-05,2]
[351665801,1738701031754,-549.08997481,9.999e-05,2]
[351665802,1738701031764,-500.0,9.999e-05,2]
[351665803,1738701031773,-622.92864485,9.999e-05,2]
[351665804,1738701031783,-637.69,9.999e-05,2]
[351665805,1738701031793,-500.0,9.999e-05,2]
[351665806,1738701031802,-500.0,9.999e-05,2]
[351665807,1738701031812,-500.0,9.999e-05,2]
[351665808,1738701031823,-34377.20268908,0.0001,2]
[351665834,1738701032283,-640.73268982,0.0001,2]
[351665836,1738701032294,-3983.04186657,0.0001,2]
[351665838,1738701032305,-961.67907138,0.0001,2]
[351665840,1738701032316,-14646.96342524,0.0001,2]
[351665842,1738701032327,-491.25,0.0001,2]
[351665845,1738701032346,-41942.97,0.0001,2]
[351665847,1738701032357,-1880.79730344,0.0001,2]
[351665850,1738701032373,-9839.64,0.0001,2]
[351665852,1738701032384,-148256.34290906,0.0001,2]
[351665854,1738701032396,-19600.0,0.0001,2]
[351665856,1738701032406,-1370.34999996,0.0001,2]
[351665858,1738701032421,-275.83066418,0.0001,2]
[351665912,1738701037538,-470.75852797,9.999e-05,2]
[351665913,1738701037601,-4034.81353237,9.999e-05,2]
[351665914,1738701037613,-500.0,9.999e-05,2]
[351665915,1738701037623,-500.0,9.999e-05,2]
[351665916,1738701037632,-218.64559865,9.999e-05,2]
[351665917,1738701037642,-22632.59086898,0.0001,2]
[351665918,1738701037771,-142120.71634639,0.0001,2]
[351665919,1738701037782,-204308.0939857,0.0001,2]
[351665920,1738701037792,-374.64,0.0001,2]
[351665921,1738701037802,-222.9,0.00010136,2]
[351665922,1738701037812,-500.0,0.00010136,2]
[351665923,1738701037821,-500.0,0.00010136,2]
[351665925,1738701037831,-500.0,0.00010136,2]
[351665927,1738701037841,-500.0,0.00010136,2]
[351665929,1738701037850,-500.0,0.00010136,2]
[351665930,1738701037860,-500.0,0.00010136,2]
[351665933,1738701037872,-344.24,0.00010136,2]
[351665935,1738701037882,-500.0,0.00010136,2]
[351665937,1738701037892,-483.05,0.00010136,2]
[351665939,1738701037901,-500.0,0.00010136,2]
[351665941,1738701037911,-500.0,0.00010136,2]
[351665942,1738701037920,-500.0,0.00010136,2]
[351665945,1738701037930,-500.0,0.00010136,2]
[351665947,1738701037940,-500.0,0.00010136,2]
[351665949,1738701037949,-550.24,0.00010137,2]
[351665951,1738701037959,-500.0,0.00010273,2]
[351665953,1738701037968,-500.0,0.00010273,2]
[351665954,1738701037980,-500.0,0.00010273,2]
[351665957,1738701037990,-500.0,0.00010273,2]
[351665959,1738701038000,-494.97695932,0.00010273,2]
[351665961,1738701038013,-500.0,0.00010273,2]
[351665963,1738701038023,-419.3,0.00010273,2]
[351665966,1738701038032,-500.0,0.00010273,2]
[351665968,1738701038042,-500.0,0.00010273,2]
[351665971,1738701038051,-255.81804633,0.00010273,2]
[351665974,1738701038060,-500.0,0.00010273,2]
[351665976,1738701038070,-420.0,0.00010306,2]
[351665980,1738701038080,-150.0,0.00010306,2]
[351665983,1738701038090,-500.0,0.0001041,2]
[351665985,1738701038099,-500.0,0.0001041,2]
[351665987,1738701038108,-500.0,0.0001041,2]
[351665990,1738701038120,-500.0,0.0001041,2]
[351665993,1738701038130,-500.0,0.0001041,2]
[351665996,1738701038139,-500.0,0.0001041,2]
[351665998,1738701038148,-318.63733367,0.0001041,2]
[351666000,1738701038158,-500.0,0.0001041,2]
[351666002,1738701038167,-500.0,0.00010547,2]
[351666004,1738701038176,-500.0,0.00010547,2]
[351666006,1738701038185,-500.0,0.00010547,2]
[351666008,1738701038195,-500.0,0.00010547,2]
[351666010,1738701038204,-567.6,0.00010547,2]
[351666012,1738701038213,-500.0,0.00010547,2]
[351666014,1738701038222,-201.84,0.00010595,2]
[351666016,1738701038231,-500.0,0.00010684,2]
[351666018,1738701038240,-315.97709817,0.00010684,2]
[351666020,1738701038249,-500.0,0.00010684,2]
[351666021,1738701038259,-171.11524832,0.00010684,2]
[351666022,1738701038268,-500.0,0.00010684,2]
[351666023,1738701038276,-1000.0,0.00010799,2]
[351666024,1738701038286,-216.63295859,0.00010821,2]
[351666025,1738701038294,-500.0,0.00010821,2]
[351666026,1738701038303,-500.0,0.00010821,2]
[351666027,1738701038312,-509.31,0.0001085,2]
[351666028,1738701038321,-2528.66,0.00010945,2]
[351666029,1738701038330,-500.0,0.00010958,2]
[351666030,1738701038338,-500.0,0.00010958,2]
[351666031,1738701038347,-150.0,0.00010959,2]
[351666032,1738701038356,-153.0,0.00011015,2]
[351666033,1738701038368,-153.0,0.00011015,2]
[351666034,1738701038377,-153.0,0.00011015,2]
[351666036,1738701038386,-153.0,0.00011015,2]
[351666038,1738701038395,-153.0,0.00011015,2]
[351666040,1738701038403,-153.0,0.00011015,2]
[351666041,1738701038412,-153.0,0.00011015,2]
[351666043,1738701038422,-153.0,0.00011015,2]
[351666045,1738701038431,-153.0,0.00011015,2]
[351666047,1738701038440,-153.0,0.00011015,2]
[351666049,1738701038449,-153.0,0.00011015,2]
[351666051,1738701038458,-153.0,0.00011015,2]
[351666053,1738701038467,-153.0,0.00011015,2]
[351666055,1738701038476,-447.2602494,0.00011041,2]
[351666057,1738701038489,-352.9997506,0.00011041,2]
[351666059,1738701038498,-500.0,0.00011095,2]
[351666062,1738701038507,-500.0,0.00011095,2]
[351666063,1738701038517,-1609.31010591,0.00011099,2]
[351666065,1738701038526,-1609.3101059,0.00011099,2]
[351666067,1738701038535,-1609.3101059,0.00011099,2]
[351666069,1738701038544,-1609.3101059,0.00011099,2]
[351666071,1738701038554,-1609.3101059,0.00011099,2]
[351666073,1738701038565,-1609.3101059,0.00011099,2]
[351666075,1738701038577,-1395.1,0.00011141,2]
[351666077,1738701038586,-150.0,0.00011178,2]
[351666079,1738701038598,-150.0,0.00011178,2]
[351666081,1738701038607,-150.0,0.00011178,2]
[351666083,1738701038618,-150.0,0.00011178,2]
[351666085,1738701038628,-150.0,0.00011178,2]
[351666087,1738701038637,-166.37,0.00011211,2]
[351666089,1738701038646,-500.0,0.00011232,2]
[351666091,1738701038655,-500.0,0.00011232,2]
[351666093,1738701038664,-1081.976,0.00011237,2]
[351666095,1738701038674,-546.03,0.00011241,2]
[351666097,1738701038683,-289.78,0.00011241,2]
[351666098,1738701038692,-557.9293029,0.00011278,2]
[351666101,1738701038703,-1051.380803,0.00011278,2]
[351666103,1738701038712,-150.0,0.000113,2]
[351666105,1738701038720,-300.0,0.000113,2]
[351666106,1738701038729,-587.0,0.00011336,2]
[351666109,1738701038738,-439.25848075,0.00011369,2]
[351666110,1738701038747,-431.84147095,0.00011369,2]
[351666112,1738701038756,-1609.3101059,0.00011485,2]
[351666114,1738701038765,-368.17,0.00011502,2]
[351666117,1738701038775,-208.09160063,0.00011507,2]
[351666119,1738701038786,-2542.90839937,0.00011507,2]
[351666121,1738701038795,-380.02,0.0001163,2]
[351666123,1738701038804,-1609.3101059,0.00011692,2]
[351666125,1738701038813,-151.68,0.00011711,2]
[351666127,1738701038822,-151.38,0.00011711,2]
[351666129,1738701038831,-431.43955898,0.00011718,2]
[351666130,1738701038840,-150.0,0.00011731,2]
[351666132,1738701038849,-150.0,0.00011739,2]
[351666135,1738701038858,-150.0,0.00011742,2]
[351666137,1738701038870,-150.0,0.00011774,2]
[351666139,1738701038879,-371.56,0.00011785,2]
[351666141,1738701038889,-3618.09735301,0.00011799,2]
[351666143,1738701038901,-321.34856314,0.00011799,2]
[351666145,1738701038912,-1472.34,0.00011799,2]
[351666147,1738701038922,-1130.97790777,0.00011799,2]
[351666148,1738701038931,-370.39,0.000118,2]
[351666150,1738701038940,-150.0,0.00011801,2]
[351666152,1738701038950,-150.0,0.00011802,2]
[351666153,1738701038959,-150.0,0.0001181,2]
[351666154,1738701038968,-157.03169956,0.00011816,2]
[351666155,1738701038977,-150.0,0.00011819,2]
[351666157,1738701038986,-150.0,0.00011819,2]
[351666159,1738701039000,-150.0,0.00011827,2]
[351666161,1738701039009,-150.0,0.00011841,2]
[351666163,1738701039018,-150.0,0.00011843,2]
[351666165,1738701039027,-150.0,0.00011862,2]
[351666167,1738701039037,-150.0,0.00011865,2]
[351666169,1738701039046,-2340.78148267,0.0001188,2]
[351666171,1738701039057,-1659.21851733,0.0001188,2]
[351666173,1738701039067,-150.0,0.00011881,2]
[351666175,1738701039077,-1224.1618982,0.00011897,2]
[351666177,1738701039089,-12059.25700772,0.00011897,2]
[351666179,1738701039099,-1609.3101059,0.00011899,2]
[351666181,1738701039108,-2000.0,0.00011903,2]
[351666183,1738701039120,-200.0,0.00011903,2]
[351666185,1738701039129,-150.0,0.00011908,2]
[351666187,1738701039139,-150.0,0.00011917,2]
[351666189,1738701039147,-150.0,0.0001193,2]
[351666191,1738701039157,-561.229,0.00011962,2]
[351666193,1738701039167,-150.0,0.00011963,2]
[351666195,1738701039176,-371.31,0.00011964,2]
[351666197,1738701039185,-8354.27301929,0.00011964,2]
[351666235,1738701039455,-473.23275104,9.999e-05,2]
[351666237,1738701039466,-26.76724896,9.999e-05,2]
[351666239,1738701039475,-734.25143744,0.00011964,2]
[351666241,1738701039487,-989.0783341,0.00011964,2]
[351666253,1738701039769,-1353.8216,0.00011964,2]
[351666255,1738701039830,-984.34476,0.00011964,2]
[351666256,1738701039842,-322.39500088,0.00011964,2]
[351666257,1738701039854,-1161.97571485,0.00011964,2]
[351666258,1738701039869,-262.31550001,0.00011964,2]
[351666259,1738701039881,-25348.45566005,0.00011964,2]
[351666260,1738701039891,-381.87,0.00011965,2]
[351666262,1738701039900,-500.0,0.00011972,2]
[351666264,1738701039909,-150.0,0.00011981,2]
[351666266,1738701039919,-150.86,0.00011985,2]
[351666268,1738701039928,-150.86,0.00011987,2]
[351666270,1738701039938,-150.86,0.00011987,2]
[351666272,1738701039947,-150.86,0.00011987,2]
[351666274,1738701039956,-150.86,0.00011987,2]
[351666275,1738701039966,-150.86,0.00011989,2]
[351666276,1738701039975,-150.86,0.00011989,2]
[351666278,1738701039985,-150.86,0.00011989,2]
[351666280,1738701039995,-150.86,0.00011989,2]
[351666282,1738701040008,-150.86,0.00011989,2]
[351666283,1738701040017,-150.86,0.00011989,2]
[351666284,1738701040026,-150.86,0.00011989,2]
[351666285,1738701040036,-150.86,0.00011989,2]
[351666286,1738701040045,-150.86,0.00011989,2]
[351666287,1738701040056,-150.86,0.00011989,2]
[351666288,1738701040065,-150.86,0.00011989,2]
[351666289,1738701040075,-150.86,0.00011989,2]
[351666290,1738701040085,-150.86,0.00011989,2]
[351666291,1738701040099,-150.86,0.00011989,2]
[351666292,1738701040108,-150.86,0.00011989,2]
[351666293,1738701040122,-150.86,0.00011989,2]
[351666294,1738701040132,-150.86,0.00011989,2]
[351666295,1738701040142,-150.86,0.00011989,2]
[351666296,1738701040151,-150.86,0.00011989,2]
[351666297,1738701040161,-150.86,0.00011989,2]
[351666298,1738701040171,-150.86,0.00011989,2]
[351666299,1738701040181,-150.86,0.00011989,2]
[351666300,1738701040190,-150.86,0.00011989,2]
[351666301,1738701040200,-150.86,0.00011989,2]
[351666302,1738701040210,-150.86,0.00011989,2]
[351666303,1738701040220,-150.86,0.00011989,2]
[351666304,1738701040229,-150.86,0.00011989,2]
[351666305,1738701040239,-150.86,0.00011989,2]
[351666306,1738701040249,-150.86,0.00011989,2]
[351666307,1738701040258,-150.86,0.00011989,2]
[351666308,1738701040268,-150.86,0.00011989,2]
[351666309,1738701040278,-150.86,0.00011989,2]
[351666310,1738701040288,-150.86,0.00011989,2]
[351666311,1738701040298,-150.86,0.00011989,2]
[351666312,1738701040308,-150.86,0.00011989,2]
[351666313,1738701040318,-150.86,0.00011989,2]
[351666314,1738701040328,-150.86,0.00011989,2]
[351666315,1738701040338,-150.86,0.00011989,2]
[351666316,1738701040347,-150.86,0.00011989,2]
[351666317,1738701040357,-150.0,0.0001199,2]
[351666318,1738701040370,-399.23066862,0.00011995,2]
[351666332,1738701042813,-500.0,9.999e-05,2]
[351666333,1738701042822,-512.2,9.999e-05,2]
[351666334,1738701042832,-8798.29999999,0.00011995,2]
[351666335,1738701042895,-4153.52943584,0.00011995,2]
[351666336,1738701042906,-817.97002,0.00011995,2]
[351666337,1738701042917,-3927.46822273,0.00011995,2]
[351666338,1738701042929,-27509.99999999,0.00011995,2]
[351666339,1738701043010,-3349.17786589,0.00011995,2]
[351666341,1738701043130,-2958.5052,0.00011995,2]
[351666406,1738701045580,-500.0,9.999e-05,2]
[351666407,1738701045590,-595.16,9.999e-05,2]
[351666408,1738701045601,-500.0,9.999e-05,2]
[351666409,1738701045610,-153.0,0.00011015,2]
[351666410,1738701045623,-49138.39408826,0.00011995,2]
[351666411,1738701045632,-500.0,0.00011996,2]
[351666412,1738701045642,-675.0,0.00011996,2]
[351666413,1738701045653,-500.0,0.00011996,2]
[351666414,1738701045662,-500.0,0.00011996,2]
[351666415,1738701045671,-500.0,0.00011996,2]
[351666416,1738701045681,-500.0,0.00011996,2]
[351666417,1738701045690,-500.0,0.00011996,2]
[351666418,1738701045700,-500.0,0.00011996,2]
[351666419,1738701045709,-500.0,0.00011996,2]
[351666420,1738701045718,-500.0,0.00011996,2]
[351666421,1738701045728,-500.0,0.00011996,2]
[351666422,1738701045737,-500.0,0.00011996,2]
[351666423,1738701045746,-500.0,0.00011996,2]
[351666424,1738701045755,-372.77877628,0.00011996,2]
[351666425,1738701045765,-407548.67396215,0.00011997,2]
[351666426,1738701045774,-500.0,0.00011997,2]
[351666427,1738701045784,-592.48,0.00011997,2]
[351666428,1738701045793,-500.0,0.00011997,2]
[351666429,1738701045802,-500.0,0.00011997,2]
[351666430,1738701045812,-500.0,0.00011997,2]
[351666431,1738701045821,-500.0,0.00011997,2]
[351666432,1738701045830,-500.0,0.00011997,2]
[351666433,1738701045839,-500.0,0.00011997,2]
[351666434,1738701045849,-500.0,0.00011997,2]
[351666435,1738701045858,-500.0,0.00011997,2]
[351666436,1738701045870,-500.0,0.00011997,2]
[351666437,1738701045879,-500.0,0.00011997,2]
[351666438,1738701045889,-511.56,0.00011997,2]
[351666439,1738701045899,-578.61062726,0.00011997,2]
[351666440,1738701045909,-556.53,0.00011997,2]
[351666441,1738701045919,-113686.21835306,0.00011997,2]
[351666442,1738701045928,-217.66,0.00011998,2]
[351666443,1738701045938,-500.0,0.00011998,2]
[351666444,1738701045947,-500.0,0.00011998,2]
[351666445,1738701045957,-163.68,0.00011998,2]
[351666446,1738701045966,-500.0,0.00011998,2]
[351666447,1738701045975,-168.38081092,0.00011998,2]
[351666448,1738701045985,-500.0,0.00011998,2]
[351666449,1738701045996,-500.0,0.00011998,2]
[351666450,1738701046006,-500.0,0.00011998,2]
[351666451,1738701046015,-578.76753721,0.00011998,2]
[351666452,1738701046024,-500.0,0.00011998,2]
[351666453,1738701046033,-500.0,0.00011998,2]
[351666454,1738701046043,-500.0,0.00011998,2]
[351666455,1738701046052,-517.69,0.00011998,2]
[351666456,1738701046062,-379.63,0.00011998,2]
[351666457,1738701046071,-500.0,0.00011998,2]
[351666458,1738701046080,-500.0,0.00011998,2]
[351666459,1738701046090,-500.0,0.00011998,2]
[351666460,1738701046099,-500.0,0.00011998,2]
[351666461,1738701046108,-500.0,0.00011998,2]
[351666462,1738701046120,-773.83,0.00011998,2]
[351666463,1738701046129,-500.0,0.00011998,2]
[351666464,1738701046138,-225.67373946,0.00011998,2]
[351666465,1738701046147,-500.0,0.00011998,2]
[351666466,1738701046157,-500.0,0.00011998,2]
[351666467,1738701046167,-500.0,0.00011998,2]
[351666468,1738701046176,-500.0,0.00011998,2]